[Event "91st GER-ch 2020"]
[Site "Magdeburg"]
[Date "2020.08.18"]
[Round "3.11"]
[White "Koellner, Ruben Gideon"]
[Black "Bastian, Herbert"]
[Result "0-1"]
[ECO "A45"]
[WhiteElo "2376"]
[BlackElo "2272"]
[Annotator "ChessBase"]
[PlyCount "186"]
[EventDate "2020.08.16"]
[EventType "swiss"]
[EventCountry "GER"]
[SourceTitle "playchess.com"]
[Source "ChessBase"]
[SourceQuality "1"]
[TimeControl "40/5400+30:1800+30"]

1. d4 {[%emt 0:00:00]} Nf6 {[%emt 0:00:24]} 2. Bg5 {[%emt 0:00:00]} Ne4 {[%emt 0:01:58]} 3. Bf4 {[%emt 0:00:00]} g6 {[%emt 0:00:26]} 4. e3 {[%emt 0:01:10]} Bg7 {[%emt 0:00:22]} 5. Bd3 {[%emt 0:00:24]} Nf6 {[%emt 0:00:58]} 6. Nc3 {[%emt 0:06:06]} d6 {[%emt 0:01:15]} 7. h3 {[%emt 0:02:42]} Nbd7 {[%emt 0:03:18]} 8. Nf3 {[%emt 0:01:20]} c6 {[%emt 0:05:39]} 9. e4 {[%emt 0:02:07]} Nh5 {[%emt 0:05:07]} 10. Bg5 {[%emt 0:05:52]} h6 {[%emt 0:03:52]} 11. Be3 {[%emt 0:00:07]} e5 {[%emt 0:00:41]} 12. dxe5 {[%emt 0:02:10]} dxe5 {[%emt 0:05:05]} 13. Qd2 {[%emt 0:01:39]} Qf6 {[%emt 0:03:27]} 14. O-O-O {[%emt 0:07:36]} Nf4 {[%emt 0:01:42]} 15. Bxf4 {[%emt 0:01:05]} Qxf4 {[%emt 0:01:51]} 16. Qxf4 {[%emt 0:00:09]} exf4 {[%emt 0:00:08]} 17. Ne2 {[%emt 0:00:10]} g5 {[%emt 0:03:42]} 18. h4 {[%emt 0:03:56]} f6 {[%emt 0:10:58]} 19. Ned4 {[%emt 0:14:18]} g4 {[%emt 0:10:42]} 20. Nd2 {[%emt 0:05:51]} Ne5 {[%emt 0:01:49]} 21. h5 {[%emt 0:06:07]} Bf8 {[%emt 0:00:53]} 22. N2b3 {[%emt 0:26:07]} Bd7 {[%emt 0:02:43]} 23. Ne2 {[%emt 0:03:42]} f3 {[%emt 0:05:48]} 24. gxf3 {[%emt 0:00:05]} Nxf3 {[%emt 0:06:29]} 25. Nf4 {[%emt 0:00:39]} Ne5 {[%emt 0:00:35]} 26. Ng6 {[%emt 0:05:41]} Rg8 {[%emt 0:00:32]} 27. Nxe5 {[%emt 0:02:53]} fxe5 {[%emt 0:00:07]} 28. Rdg1 {[%emt 0:00:14]} Be7 {[%emt 0:00:57]} 29. Na5 {[%emt 0:01:33]} b5 {[%emt 0:03:35]} 30. Rg2 {[%emt 0:00:13]} O-O-O {[%emt 0:00:55]} 31. Be2 {[%emt 0:00:48]} Rdf8 {[%emt 0:01:58]} 32. Nb3 {[%emt 0:00:25]} Rf4 {[%emt 0:01:19]} 33. Bd3 {[%emt 0:00:42]} Rgf8 {[%emt 0:01:06]} 34. Rhh2 {[%emt 0:00:19]} Kc7 {[%emt 0:01:00]} 35. Kd1 {[%emt 0:00:40]} Kb6 {[%emt 0:00:27]} 36. Nd2 {[%emt 0:00:34]} Be6 {[%emt 0:00:59]} 37. b3 {[%emt 0:00:25]} Bb4 {[%emt 0:04:46]} 38. Nf1 {[%emt 0:00:33]} Bc3 {[%emt 0:01:08]} 39. Ke2 {[%emt 0:00:27]} a5 {[%emt 0:01:59]} 40. Ng3 {[%emt 0:00:36]} c5 {[%emt 0:01:15]} 41. Kd1 {[%emt 0:03:03]} c4 {[%emt 0:12:53]} 42. bxc4 {[%emt 0:03:06]} bxc4 {[%emt 0:00:42]} 43. Ne2 {[%emt 0:03:23]} cxd3 {[%emt 0:01:08]} 44. Nxc3 {[%emt 0:00:17]} Rc8 {[%emt 0:00:50]} 45. Kd2 {[%emt 0:01:32]} dxc2 {[%emt 0:00:55]} 46. Rg3 {[%emt 0:00:27]} Rxe4 {[%emt 0:07:16]} 47. Kxc2 {[%emt 0:00:10]} Rb4 {[%emt 0:01:52]} 48. Kd2 {[%emt 0:04:27]} Bxa2 {[%emt 0:04:41]} 49. Nxa2 {[%emt 0:00:21]} Rb2+ {[%emt 0:00:03]} 50. Kd3 {[%emt 0:00:17]} Rxa2 {[%emt 0:00:03]} 51. Rxg4 {[%emt 0:00:36]} Rf8 {[%emt 0:01:26]} 52. Rg6+ {[%emt 0:04:07]} Kc5 {[%emt 0:00:07]} 53. Ke3 {[%emt 0:02:28]} Kd5 {[%emt 0:01:19]} 54. Rb6 {[%emt 0:05:37]} Rc8 {[%emt 0:01:26]} 55. Rb3 {[%emt 0:02:47]} a4 {[%emt 0:00:59]} 56. Rd3+ {[%emt 0:01:47]} Ke6 {[%emt 0:00:05]} 57. Rg2 {[%emt 0:00:50]} Rcc2 {[%emt 0:00:18]} 58. Kf3 {[%emt 0:02:38]} Rab2 {[%emt 0:01:58]} 59. Ke4 {[%emt 0:01:13]} Rc4+ {[%emt 0:03:15]} 60. Ke3 {[%emt 0:00:16]} Kf5 {[%emt 0:00:35]} 61. Rg8 {[%emt 0:01:06]} Re4+ {[%emt 0:01:26]} 62. Kf3 {[%emt 0:00:00]} Rf4+ {[%emt 0:00:08]} 63. Ke3 {[%emt 0:00:52]} Rbxf2 {[%emt 0:00:52]} 64. Rf8+ {[%emt 0:00:15]} Ke6 {[%emt 0:00:45]} 65. Re8+ {[%emt 0:00:28]} Kf6 {[%emt 0:00:18]} 66. Rd6+ {[%emt 0:00:20]} Kf5 {[%emt 0:01:05]} 67. Rf8+ {[%emt 0:00:08]} Kg5 {[%emt 0:00:11]} 68. Rg8+ {[%emt 0:00:32]} Kxh5 {[%emt 0:00:48]} 69. Rgg6 {[%emt 0:00:17]} R2f3+ {[%emt 0:00:28]} 70. Ke2 {[%emt 0:00:11]} a3 {[%emt 0:00:47]} 71. Ra6 {[%emt 0:01:19]} Rb3 {[%emt 0:01:14]} 72. Rxh6+ {[%emt 0:00:34]} Kg5 {[%emt 0:00:31]} 73. Rhg6+ {[%emt 0:00:17]} Kf5 {[%emt 0:00:04]} 74. Rgf6+ {[%emt 0:00:47]} Ke4 {[%emt 0:01:22]} 75. Ra4+ {[%emt 0:00:14]} Kd5 {[%emt 0:00:06]} 76. Ra5+ {[%emt 0:00:48]} Kd4 {[%emt 0:00:43]} 77. Rd6+ {[%emt 0:00:25]} Ke4 {[%emt 0:00:35]} 78. Re6 {[%emt 0:01:04]} Re3+ {[%emt 0:00:41]} 79. Kd2 {[%emt 0:00:21]} Rf2+ {[%emt 0:00:06]} 80. Kd1 {[%emt 0:00:05]} Kf5 {[%emt 0:00:41]} 81. Re8 {[%emt 0:00:45]} Rh2 {[%emt 0:01:14]} 82. Rf8+ {[%emt 0:00:07]} Ke6 {[%emt 0:00:17]} 83. Ra6+ {[%emt 0:00:35]} Kd5 {[%emt 0:00:25]} 84. Rfa8 {[%emt 0:00:49]} Rg3 {[%emt 0:00:23]} 85. Ra5+ {[%emt 0:00:25]} Ke6 {[%emt 0:00:18]} 86. R5a6+ {[%emt 0:00:08]} Kf5 {[%emt 0:00:20]} 87. Rf8+ {[%emt 0:00:30]} Ke4 {[%emt 0:00:09]} 88. Ra4+ {[%emt 0:00:36]} Kd5 {[%emt 0:00:16]} 89. Rd8+ {[%emt 0:00:37]} Ke6 {[%emt 0:00:19]} 90. Ra6+ {[%emt 0:00:21]} Ke7 {[%emt 0:00:14]} 91. Rd2 {[%emt 0:00:05]} Rg1+ {[%emt 0:00:22]} 92. Kc2 {[%emt 0:00:04]} Rxd2+ {[%emt 0:00:06]} 93. Kxd2 {[%emt 0:00:06]} a2 {[%emt 0:00:05]} 0-1

[Event "91st GER-ch 2020"]
[Site "Magdeburg"]
[Date "2020.08.18"]
[Round "4.3"]
[White "Dobrikov, Marco"]
[Black "Pfreundt, Jakob"]
[Result "1-0"]
[ECO "B68"]
[WhiteElo "2290"]
[BlackElo "2397"]
[Annotator "ChessBase"]
[PlyCount "127"]
[EventDate "2020.08.16"]
[EventType "swiss"]
[EventCountry "GER"]
[SourceTitle "playchess.com"]
[Source "ChessBase"]
[SourceQuality "1"]
[TimeControl "40/5400+30:1800+30"]

1. e4 {[%emt 0:00:00]} c5 {[%emt 0:00:00]} 2. Nf3 {[%emt 0:00:00]} d6 {[%emt 0:00:03]} 3. d4 {[%emt 0:00:00]} cxd4 {[%emt 0:00:04]} 4. Nxd4 {[%emt 0:00:00]} Nf6 {[%emt 0:00:09]} 5. Nc3 {[%emt 0:00:00]} Nc6 {[%emt 0:00:20]} 6. Bg5 {[%emt 0:00:08]} e6 {[%emt 0:00:19]} 7. Qd2 {[%emt 0:00:25]} a6 {[%emt 0:00:24]} 8. O-O-O {[%emt 0:00:13]} Bd7 {[%emt 0:00:13]} 9. f4 {[%emt 0:01:41]} Be7 {[%emt 0:00:28]} 10. Be2 {[%emt 0:08:58]} b5 {[%emt 0:35:38]} 11. Bf3 {[%emt 0:04:37]} Rc8 {[%emt 0:06:05]} 12. Rhe1 {[%emt 0:13:27]} b4 {[%emt 0:06:45]} 13. Nce2 {[%emt 0:05:42]} O-O {[%emt 0:08:50]} 14. Nxc6 {[%emt 0:03:48]} Bxc6 {[%emt 0:00:28]} 15. Nd4 {[%emt 0:00:15]} Ba8 {[%emt 0:02:02]} 16. Bxf6 {[%emt 0:13:38]} Bxf6 {[%emt 0:02:47]} 17. Qxb4 {[%emt 0:00:23]} Rb8 {[%emt 0:00:55]} 18. Qa3 {[%emt 0:01:37]} Qc7 {[%emt 0:11:11]} 19. Re2 {[%emt 0:06:28]} e5 {[%emt 0:02:35]} 20. Nb3 {[%emt 0:02:22]} Rb6 {[%emt 0:01:53]} 21. f5 {[%emt 0:01:25]} Be7 {[%emt 0:01:33]} 22. Qa5 {[%emt 0:00:04]} Rfb8 {[%emt 0:03:20]} 23. Kb1 {[%emt 0:01:48]} Bc6 {[%emt 0:01:22]} 24. c4 {[%emt 0:03:00]} Qa7 {[%emt 0:01:50]} 25. Nc1 {[%emt 0:04:32]} d5 {[%emt 0:06:11]} 26. exd5 {[%emt 0:00:25]} Bb4 {[%emt 0:01:09]} 27. Qxb6 {[%emt 0:00:15]} Qxb6 {[%emt 0:00:14]} 28. dxc6 {[%emt 0:00:03]} Rd8 {[%emt 0:01:31]} 29. Rxd8+ {[%emt 0:00:35]} Qxd8 {[%emt 0:00:02]} 30. Bd5 {[%emt 0:00:39]} Bd6 {[%emt 0:01:14]} 31. Nd3 {[%emt 0:00:07]} g6 {[%emt 0:00:46]} 32. Nxe5 {[%emt 0:01:38]} Bxe5 {[%emt 0:00:13]} 33. Rxe5 {[%emt 0:00:02]} Kg7 {[%emt 0:00:33]} 34. a3 {[%emt 0:00:18]} Kf6 {[%emt 0:00:38]} 35. Re3 {[%emt 0:00:25]} Qb6 {[%emt 0:00:31]} 36. Rf3 {[%emt 0:00:30]} gxf5 {[%emt 0:04:00]} 37. Ka2 {[%emt 0:00:08]} Ke5 {[%emt 0:01:24]} 38. Rb3 {[%emt 0:00:11]} Qc5 {[%emt 0:00:18]} 39. Rb7 {[%emt 0:00:49]} h5 {[%emt 0:00:27]} 40. Rxf7 {[%emt 0:00:19]} a5 {[%emt 0:00:12]} 41. Rh7 {[%emt 0:31:51]} a4 {[%emt 0:31:13]} 42. Rxh5 {[%emt 0:00:03]} Qb6 {[%emt 0:00:00]} 43. Rh3 {[%emt 0:00:00]} f4 {[%emt 0:00:00]} 44. Rf3 {[%emt 0:00:00]} Qc5 {[%emt 0:00:00]} 45. h4 {[%emt 0:00:00]} Qa7 {[%emt 0:00:00]} 46. h5 {[%emt 0:00:00]} Qh7 {[%emt 0:00:00]} 47. Rh3 {[%emt 0:00:00]} Kd6 {[%emt 0:00:00]} 48. h6 {[%emt 0:00:00]} Kc7 {[%emt 0:00:00]} 49. g4 {[%emt 0:00:00]} fxg3 {[%emt 0:00:00]} 50. Rxg3 {[%emt 0:00:00]} Qxh6 {[%emt 0:00:00]} 51. Rf3 {[%emt 0:00:00]} Kd6 {[%emt 0:00:00]} 52. Rf7 {[%emt 0:00:00]} Qh3 {[%emt 0:00:00]} 53. Rd7+ {[%emt 0:00:00]} Ke5 {[%emt 0:00:00]} 54. Rb7 {[%emt 0:00:00]} Qc8 {[%emt 0:00:00]} 55. Ra7 {[%emt 0:00:00]} Kd4 {[%emt 0:00:00]} 56. Rxa4 {[%emt 0:00:00]} Kd3 {[%emt 0:00:00]} 57. Ra7 {[%emt 0:00:00]} Kc2 {[%emt 0:00:00]} 58. c7 {[%emt 0:00:00]} Kc1 {[%emt 0:00:00]} 59. Rb7 {[%emt 0:00:00]} Kc2 {[%emt 0:00:00]} 60. Be4+ {[%emt 0:00:00]} Kc1 {[%emt 0:00:12]} 61. Kb3 {[%emt 0:00:00]} Qd7 {[%emt 0:00:47]} 62. Bd5 {[%emt 0:00:00]} Kd2 {[%emt 0:01:22]} 63. Kb4 {[%emt 0:00:00]} Kd3 {[%emt 0:00:28]} 64. Kc5 {[%emt 0:00:00]} 1-0

[Event "91st GER-ch 2020"]
[Site "Magdeburg"]
[Date "2020.08.18"]
[Round "4.6"]
[White "Bastian, Herbert"]
[Black "Siebrecht, Sebastian"]
[Result "0-1"]
[ECO "B26"]
[WhiteElo "2272"]
[BlackElo "2417"]
[Annotator "ChessBase"]
[PlyCount "86"]
[EventDate "2020.08.16"]
[EventType "swiss"]
[EventCountry "GER"]
[SourceTitle "playchess.com"]
[Source "ChessBase"]
[SourceQuality "1"]
[TimeControl "40/5400+30:1800+30"]

1. e4 {[%emt 0:00:00]} c5 {[%emt 0:00:00]} 2. Nc3 {[%emt 0:00:00]} Nc6 {[%emt 0:00:00]} 3. g3 {[%emt 0:00:07]} g6 {[%emt 0:00:10]} 4. Bg2 {[%emt 0:00:08]} Bg7 {[%emt 0:00:04]} 5. d3 {[%emt 0:00:09]} d6 {[%emt 0:00:06]} 6. Be3 {[%emt 0:02:39]} e5 {[%emt 0:00:46]} 7. Qd2 {[%emt 0:02:57]} h6 {[%emt 0:00:11]} 8. Nge2 {[%emt 0:14:42]} Nge7 {[%emt 0:00:30]} 9. O-O {[%emt 0:00:56]} Nd4 {[%emt 0:01:26]} 10. f4 {[%emt 0:02:16]} Be6 {[%emt 0:01:41]} 11. Nd1 {[%emt 0:07:20]} Bg4 {[%emt 0:05:01]} 12. Nc1 {[%emt 0:03:12]} Qd7 {[%emt 0:01:05]} 13. c3 {[%emt 0:01:19]} Ndc6 {[%emt 0:00:08]} 14. Nf2 {[%emt 0:00:16]} Be6 {[%emt 0:00:14]} 15. Ne2 {[%emt 0:00:27]} Nd4 {[%emt 0:05:07]} 16. Qd1 {[%emt 0:14:49]} Nxe2+ {[%emt 0:01:52]} 17. Qxe2 {[%emt 0:02:15]} Rc8 {[%emt 0:00:01]} 18. a3 {[%emt 0:08:35]} O-O {[%emt 0:00:29]} 19. Qd2 {[%emt 0:03:06]} exf4 {[%emt 0:07:48]} 20. Bxf4 {[%emt 0:04:36]} Kh7 {[%emt 0:08:59]} 21. h4 {[%emt 0:01:11]} Nc6 {[%emt 0:07:18]} 22. b4 {[%emt 0:01:27]} b6 {[%emt 0:04:56]} 23. Rab1 {[%emt 0:01:05]} Ne5 {[%emt 0:05:08]} 24. b5 {[%emt 0:07:25]} d5 {[%emt 0:02:26]} 25. Rfe1 {[%emt 0:03:38]} dxe4 {[%emt 0:10:00]} 26. Rxe4 {[%emt 0:00:49]} Ng4 {[%emt 0:01:04]} 27. Nxg4 {[%emt 0:02:20]} Bxg4 {[%emt 0:00:03]} 28. Rbe1 {[%emt 0:01:46]} Qxb5 {[%emt 0:08:32]} 29. Bd6 {[%emt 0:00:53]} Rfd8 {[%emt 0:00:19]} 30. Rxg4 {[%emt 0:05:50]} Rxd6 {[%emt 0:00:31]} 31. Re7 {[%emt 0:01:11]} f5 {[%emt 0:06:20]} 32. Rf4 {[%emt 0:01:28]} Qxd3 {[%emt 0:04:42]} 33. Qxd3 {[%emt 0:00:30]} Rxd3 {[%emt 0:00:05]} 34. Rxa7 {[%emt 0:00:42]} Rxg3 {[%emt 0:01:24]} 35. h5 {[%emt 0:00:36]} Rd8 {[%emt 0:01:35]} 36. Rb7 {[%emt 0:03:04]} Rd6 {[%emt 0:01:50]} 37. c4 {[%emt 0:00:49]} gxh5 {[%emt 0:03:56]} 38. Rxf5 {[%emt 0:01:39]} Kg6 {[%emt 0:03:01]} 39. Rd5 {[%emt 0:00:29]} Re6 {[%emt 0:02:38]} 40. Kf2 {[%emt 0:01:59]} h4 {[%emt 0:00:32]} 41. Rdd7 {[%emt 0:03:02]} Bd4+ {[%emt 0:01:21]} 42. Kf1 {[%emt 0:00:03]} h3 {[%emt 0:00:38]} 43. Bd5 Rg1# 0-1

[Event "91st GER-ch 2020"]
[Site "Magdeburg"]
[Date "2020.08.18"]
[Round "4.7"]
[White "Dubiel, Jacek"]
[Black "Muckle, Julius"]
[Result "1/2-1/2"]
[ECO "C09"]
[WhiteElo "2414"]
[BlackElo "2386"]
[Annotator "ChessBase"]
[PlyCount "62"]
[EventDate "2020.08.16"]
[EventType "swiss"]
[EventCountry "GER"]
[SourceTitle "playchess.com"]
[Source "ChessBase"]
[SourceQuality "1"]
[TimeControl "40/5400+30:1800+30"]

1. e4 {[%emt 0:00:00]} e6 {[%emt 0:00:00]} 2. d4 {[%emt 0:00:00]} d5 {[%emt 0:00:00]} 3. Nd2 {[%emt 0:00:00]} c5 {[%emt 0:00:00]} 4. exd5 {[%emt 0:00:03]} exd5 {[%emt 0:00:00]} 5. Ngf3 {[%emt 0:00:17]} Nc6 {[%emt 0:00:07]} 6. Bb5 {[%emt 0:00:22]} Bd6 {[%emt 0:00:04]} 7. O-O {[%emt 0:00:26]} Nge7 {[%emt 0:00:05]} 8. dxc5 {[%emt 0:00:22]} Bxc5 {[%emt 0:00:02]} 9. Nb3 {[%emt 0:00:27]} Bd6 {[%emt 0:00:06]} 10. Re1 {[%emt 0:10:27]} O-O {[%emt 0:00:30]} 11. Nfd4 {[%emt 0:10:06]} Qc7 {[%emt 0:31:27]} 12. h3 {[%emt 0:01:00]} Bd7 {[%emt 0:00:45]} 13. c3 {[%emt 0:13:30]} Rfe8 {[%emt 0:00:48]} 14. Bd3 {[%emt 0:10:17]} a6 {[%emt 0:01:15]} 15. Qc2 {[%emt 0:03:48]} Ng6 {[%emt 0:01:40]} 16. Rxe8+ {[%emt 0:05:56]} Rxe8 {[%emt 0:00:50]} 17. Bd2 {[%emt 0:00:11]} Nce5 {[%emt 0:00:37]} 18. Re1 {[%emt 0:01:18]} Qc8 {[%emt 0:01:46]} 19. Bf1 {[%emt 0:04:15]} Nc4 {[%emt 0:02:06]} 20. Rxe8+ {[%emt 0:03:36]} Qxe8 {[%emt 0:00:12]} 21. Bc1 {[%emt 0:02:02]} Nf4 {[%emt 0:17:52]} 22. Nf5 {[%emt 0:06:30]} Bxf5 {[%emt 0:19:10]} 23. Qxf5 {[%emt 0:00:09]} Ne2+ {[%emt 0:00:33]} 24. Bxe2 {[%emt 0:02:58]} Qxe2 {[%emt 0:00:02]} 25. g3 {[%emt 0:05:07]} Ne5 {[%emt 0:03:11]} 26. Qc8+ {[%emt 0:05:44]} Bf8 {[%emt 0:00:01]} 27. Be3 {[%emt 0:04:46]} Nf3+ {[%emt 0:00:36]} 28. Kg2 {[%emt 0:00:05]} Ne1+ {[%emt 0:00:07]} 29. Kg1 {[%emt 0:00:06]} Nf3+ {[%emt 0:04:50]} 30. Kg2 {[%emt 0:00:04]} Ne1+ {[%emt 0:00:06]} 31. Kg1 {[%emt 0:00:05]} Nf3+ 1/2-1/2

[Event "91st GER-ch 2020"]
[Site "Magdeburg"]
[Date "2020.08.18"]
[Round "4.9"]
[White "Mons, Leon"]
[Black "Braun, Georg"]
[Result "1/2-1/2"]
[ECO "D30"]
[WhiteElo "2540"]
[BlackElo "2360"]
[Annotator "ChessBase"]
[PlyCount "94"]
[EventDate "2020.08.16"]
[EventType "swiss"]
[EventCountry "GER"]
[SourceTitle "playchess.com"]
[Source "ChessBase"]
[SourceQuality "1"]
[TimeControl "40/5400+30:1800+30"]

1. d4 {[%emt 0:00:00]} Nf6 {[%emt 0:00:00]} 2. c4 {[%emt 0:00:00]} e6 {[%emt 0:00:23]} 3. Nf3 {[%emt 0:00:40]} d5 {[%emt 0:00:11]} 4. Bg5 {[%emt 0:00:47]} h6 {[%emt 0:00:48]} 5. Bxf6 {[%emt 0:03:42]} Qxf6 {[%emt 0:00:10]} 6. g3 {[%emt 0:01:30]} c6 {[%emt 0:10:41]} 7. Nbd2 {[%emt 0:04:15]} Nd7 {[%emt 0:03:19]} 8. Bg2 {[%emt 0:00:24]} dxc4 {[%emt 0:05:38]} 9. O-O {[%emt 0:01:36]} Nb6 {[%emt 0:03:18]} 10. Qc2 {[%emt 0:02:17]} Bd6 {[%emt 0:06:20]} 11. Nxc4 {[%emt 0:04:31]} Nxc4 {[%emt 0:00:18]} 12. Qxc4 {[%emt 0:00:04]} O-O {[%emt 0:00:42]} 13. e4 {[%emt 0:08:07]} e5 {[%emt 0:02:35]} 14. dxe5 {[%emt 0:00:59]} Bxe5 {[%emt 0:00:07]} 15. Nxe5 {[%emt 0:00:09]} Qxe5 {[%emt 0:00:07]} 16. Qb4 {[%emt 0:02:20]} a5 {[%emt 0:02:20]} 17. Qd2 {[%emt 0:08:01]} Be6 {[%emt 0:01:14]} 18. Rfd1 {[%emt 0:04:16]} Qc5 {[%emt 0:06:40]} 19. b3 {[%emt 0:06:45]} Bg4 {[%emt 0:08:16]} 20. Rac1 {[%emt 0:05:27]} Qb6 {[%emt 0:04:54]} 21. Qd4 {[%emt 0:04:22]} Qxd4 {[%emt 0:01:41]} 22. Rxd4 {[%emt 0:00:08]} Rfd8 {[%emt 0:00:26]} 23. Rxd8+ {[%emt 0:00:32]} Rxd8 {[%emt 0:00:08]} 24. h3 Be6 {[%emt 0:02:27]} 25. Rc5 {[%emt 0:01:03]} Rd1+ {[%emt 0:06:22]} 26. Kh2 {[%emt 0:00:06]} Rd2 {[%emt 0:04:10]} 27. Rxa5 {[%emt 0:00:30]} Rxf2 {[%emt 0:00:07]} 28. Ra7 {[%emt 0:02:45]} b5 {[%emt 0:02:16]} 29. g4 {[%emt 0:05:26]} Rc2 {[%emt 0:01:26]} 30. Kg3 {[%emt 0:00:43]} g5 {[%emt 0:00:52]} 31. e5 {[%emt 0:01:24]} Rc3+ {[%emt 0:04:06]} 32. Kh2 {[%emt 0:02:06]} c5 {[%emt 0:01:14]} 33. Bb7 {[%emt 0:13:56]} b4 {[%emt 0:05:01]} 34. Bc8 {[%emt 0:01:22]} Re3 {[%emt 0:06:56]} 35. Bxe6 {[%emt 0:00:16]} fxe6 {[%emt 0:00:06]} 36. Kg2 {[%emt 0:02:21]} Rxe5 {[%emt 0:00:39]} 37. Kf3 {[%emt 0:01:24]} Kh8 {[%emt 0:04:07]} 38. Rc7 {[%emt 0:00:42]} Kg8 {[%emt 0:00:16]} 39. Ra7 {[%emt 0:00:16]} Re1 {[%emt 0:01:37]} 40. Rc7 {[%emt 0:00:53]} Rh1 {[%emt 0:01:53]} 41. Ke4 {[%emt 0:34:47]} Rxh3 {[%emt 0:31:33]} 42. Ke5 {[%emt 0:00:17]} Rf3 {[%emt 0:00:00]} 43. Kxe6 {[%emt 0:00:00]} Rf4 {[%emt 0:00:00]} 44. Rxc5 {[%emt 0:00:00]} Rxg4 {[%emt 0:00:00]} 45. Kf6 {[%emt 0:00:00]} Rd4 {[%emt 0:00:00]} 46. Rc8+ {[%emt 0:00:00]} Kh7 {[%emt 0:00:00]} 47. Rc7+ {[%emt 0:00:00]} Kg8 {[%emt 0:00:00]} 1/2-1/2

[Event "91st GER-ch 2020"]
[Site "Magdeburg"]
[Date "2020.08.18"]
[Round "4.10"]
[White "Miller, Eduard"]
[Black "Gustain, Marc"]
[Result "1-0"]
[ECO "B01"]
[WhiteElo "2392"]
[BlackElo "2173"]
[Annotator "ChessBase"]
[PlyCount "75"]
[EventDate "2020.08.16"]
[EventType "swiss"]
[EventCountry "GER"]
[SourceTitle "playchess.com"]
[Source "ChessBase"]
[SourceQuality "1"]
[TimeControl "40/5400+30:1800+30"]

1. e4 {[%emt 0:02:51]} d5 {[%emt 0:00:00]} 2. exd5 {[%emt 0:00:12]} Qxd5 {[%emt 0:00:00]} 3. Nf3 {[%emt 0:00:08]} Bg4 {[%emt 0:00:00]} 4. Be2 {[%emt 0:00:04]} Nc6 {[%emt 0:00:00]} 5. d4 {[%emt 0:00:06]} O-O-O {[%emt 0:00:20]} 6. c4 {[%emt 0:00:07]} Qf5 {[%emt 0:03:44]} 7. Be3 {[%emt 0:02:59]} Bxf3 {[%emt 0:01:15]} 8. Bxf3 {[%emt 0:00:04]} Nxd4 {[%emt 0:00:41]} 9. Bxd4 {[%emt 0:00:05]} Qe6+ {[%emt 0:00:22]} 10. Be2 {[%emt 0:00:04]} Nf6 {[%emt 0:01:58]} 11. Qa4 {[%emt 0:01:40]} Rxd4 {[%emt 0:01:22]} 12. Qxa7 {[%emt 0:00:05]} Qb6 {[%emt 0:02:01]} 13. Qa8+ {[%emt 0:01:40]} Kd7 {[%emt 0:00:12]} 14. Qa4+ {[%emt 0:00:03]} c6 {[%emt 0:07:19]} 15. Qc2 {[%emt 0:07:41]} e6 {[%emt 0:03:27]} 16. O-O {[%emt 0:06:36]} Be7 {[%emt 0:02:11]} 17. Nd2 {[%emt 0:02:35]} Kc8 {[%emt 0:06:13]} 18. Nf3 {[%emt 0:06:58]} Rdd8 {[%emt 0:01:27]} 19. a3 {[%emt 0:04:51]} Nd7 {[%emt 0:05:39]} 20. b4 {[%emt 0:00:52]} Bf6 {[%emt 0:01:15]} 21. Rab1 {[%emt 0:02:43]} Ne5 {[%emt 0:09:15]} 22. c5 {[%emt 0:01:10]} Qc7 {[%emt 0:00:47]} 23. b5 {[%emt 0:01:45]} Rd5 {[%emt 0:05:10]} 24. Nxe5 {[%emt 0:06:41]} Bxe5 {[%emt 0:04:24]} 25. bxc6 {[%emt 0:05:30]} Bxh2+ {[%emt 0:03:49]} 26. Kh1 {[%emt 0:00:11]} bxc6 {[%emt 0:00:19]} 27. Qa4 {[%emt 0:05:06]} Kd7 {[%emt 0:06:09]} 28. Bf3 {[%emt 0:02:07]} Rxc5 {[%emt 0:02:52]} 29. Rfd1+ {[%emt 0:00:24]} Bd6 {[%emt 0:02:13]} 30. Qf4 {[%emt 0:12:57]} Rd5 {[%emt 0:25:21]} 31. Qxf7+ {[%emt 0:05:52]} Kd8 {[%emt 0:00:53]} 32. Qxe6 {[%emt 0:00:12]} Re8 {[%emt 0:00:21]} 33. Qg4 {[%emt 0:00:37]} Rxd1+ {[%emt 0:01:32]} 34. Rxd1 {[%emt 0:00:03]} Qe7 {[%emt 0:00:29]} 35. g3 {[%emt 0:00:54]} Qe6 {[%emt 0:02:44]} 36. Qg5+ {[%emt 0:01:19]} Re7 {[%emt 0:00:38]} 37. Qa5+ {[%emt 0:07:18]} Ke8 {[%emt 0:01:32]} 38. Bxc6+ {[%emt 0:00:18]} 1-0

[Event "91st GER-ch 2020"]
[Site "Magdeburg"]
[Date "2020.08.18"]
[Round "4.11"]
[White "Hess, Max"]
[Black "Weber, Max"]
[Result "1-0"]
[ECO "B48"]
[WhiteElo "2378"]
[BlackElo "2243"]
[Annotator "ChessBase"]
[PlyCount "37"]
[EventDate "2020.08.16"]
[EventType "swiss"]
[EventCountry "GER"]
[SourceTitle "playchess.com"]
[Source "ChessBase"]
[SourceQuality "1"]
[TimeControl "40/5400+30:1800+30"]

1. e4 {[%emt 0:00:38]} c5 {[%emt 0:00:00]} 2. Nf3 {[%emt 0:00:05]} e6 {[%emt 0:00:03]} 3. d4 {[%emt 0:00:36]} cxd4 {[%emt 0:00:21]} 4. Nxd4 {[%emt 0:00:06]} Nc6 {[%emt 0:00:07]} 5. Nc3 {[%emt 0:00:16]} Qc7 {[%emt 0:00:12]} 6. Be3 {[%emt 0:00:10]} a6 {[%emt 0:00:10]} 7. a3 {[%emt 0:00:42]} b5 {[%emt 0:04:49]} 8. Nxc6 {[%emt 0:00:34]} Qxc6 {[%emt 0:05:40]} 9. Be2 {[%emt 0:00:21]} Bb7 {[%emt 0:07:13]} 10. O-O {[%emt 0:03:40]} Rc8 {[%emt 0:08:14]} 11. Qd2 {[%emt 0:11:37]} Bc5 {[%emt 0:15:00]} 12. Rfd1 {[%emt 0:03:36]} Nf6 {[%emt 0:04:30]} 13. Bf3 {[%emt 0:07:25]} Bxe3 {[%emt 0:04:33]} 14. Qxe3 {[%emt 0:01:00]} e5 {[%emt 0:02:50]} 15. Qg5 {[%emt 0:02:11]} Qc5 {[%emt 0:04:50]} 16. Qxg7 {[%emt 0:04:02]} Ke7 {[%emt 0:00:08]} 17. Rd5 {[%emt 0:15:10]} Rhg8 {[%emt 0:08:52]} 18. Rxc5 {[%emt 0:01:16]} Rxg7 {[%emt 0:00:13]} 19. Rxe5+ {[%emt 0:00:14]} 1-0